bitfinex-derivatives/quotes_BNBF0:USTF0_20241230
["timestamp","ask_amount","ask_price","bid_price","bid_amount"]
[1735522341873,0.28496523,701.84,699.86,1.04766577]
[1735522343773,0.2624713,701.83,699.86,1.04766577]
[1735522344165,0.28497741,701.81,699.86,1.04766577]
[1735522344567,0.26250373,701.8,700.18,1.04766577]
[1735522345569,0.28498959,701.78,700.18,1.04766577]
[1735522345767,0.28498959,701.78,699.97,1.04766577]
[1735522345972,0.26250373,701.77,699.97,1.04766577]
[1735522346172,0.28500178,701.75,699.97,1.04766577]
[1735522346874,0.28500178,701.75,699.76,1.04766577]
[1735522346875,0.26254203,701.74,699.76,1.04766577]
[1735522347071,0.28501396,701.72,699.76,1.04766577]
[1735522347475,0.26254203,701.71,699.76,1.04766577]
[1735522347777,0.28502615,701.69,699.76,1.04766577]
[1735522348676,0.26255899,701.68,699.7,1.04766577]
[1735522348875,0.28503833,701.66,699.7,1.04766577]
[1735522349470,0.26256615,701.65,699.7,1.04766577]
[1735522349775,0.28505052,701.63,699.7,1.04766577]
[1735522349976,0.26256615,701.62,699.63,1.04766577]
[1735522350877,0.26256615,701.62,699.62,1.04766577]
[1735522351677,0.28505052,701.63,699.62,1.04766577]
[1735522352079,0.26266258,701.61,699.62,1.04766577]
[1735522352379,0.26266258,701.61,699.59,1.79528136]
[1735522352578,0.26266258,701.62,699.59,1.79528136]
[1735522352777,0.28509522,701.52,699.59,1.79528136]
[1735522352977,0.26266258,701.51,699.59,2.79060931]
[1735522353172,0.28510741,701.49,699.6,1.79528136]
[1735522353377,0.26266258,701.48,699.45,3.41644552]
[1735522353672,0.26266258,701.48,699.46,2.79060931]
[1735522353873,0.26266258,701.48,699.47,3.41644552]
[1735522354275,0.26261535,701.47,699.48,2.79060931]
[1735522354478,0.26261535,701.47,699.49,3.41644552]
[1735522354872,0.26261535,701.47,699.5,2.79060931]
[1735522355072,0.26261535,701.48,699.51,3.41644552]
[1735522355479,0.26261535,701.48,699.52,2.79060931]
[1735522355679,0.26261535,701.47,699.53,3.41644552]
[1735522355879,0.28512367,701.45,699.53,3.41644552]
[1735522356277,0.26261535,701.44,699.54,2.79060931]
[1735522356477,0.26261535,701.44,699.55,3.41644552]
[1735522356673,0.26260501,701.43,699.55,3.41644552]
[1735522356980,0.26260501,701.43,699.56,2.79060931]
[1735522357180,0.28512367,701.45,699.57,3.41644552]
[1735522357373,0.26259905,701.44,699.57,3.41644552]
[1735522357574,0.26259905,701.44,699.58,2.79060931]
[1735522357773,0.26259905,701.44,699.59,3.41644552]
[1735522358178,0.26259905,701.44,699.6,2.79060931]
[1735522358376,0.26259905,701.44,699.61,3.41644552]
[1735522358577,0.26259905,701.44,699.62,2.79060931]
[1735522358774,0.28512367,701.45,699.63,1.62116416]
[1735522358979,0.26261051,701.43,699.62,2.79060931]
[1735522359180,0.26261792,701.44,699.31,1.04766577]
[1735522359478,0.26261792,701.43,699.31,1.04766577]
[1735522359779,0.26261792,701.43,699.28,1.04766577]
[1735522359979,0.28512367,701.45,699.28,1.04766577]
[1735522360982,0.26265008,701.44,699.16,1.04766577]
[1735522361182,0.28517245,701.33,699.16,1.04766577]
[1735522361680,0.26263457,701.32,699.16,1.04766577]
[1735522361881,0.28517245,701.33,699.17,0.28605346]
[1735522363182,0.28517245,701.33,699.29,1.04766577]
[1735522363377,0.28517245,701.33,699.4,1.04766577]
[1735522364481,0.28517245,701.33,699.29,1.04766577]
[1735522364482,0.28517245,701.33,699.56,1.04766577]
[1735522365183,0.28517245,701.33,699.57,0.2858899]
[1735522365384,0.28517245,701.33,699.61,1.04766577]
[1735522366485,0.28517245,701.33,699.75,1.04766577]
[1735522367483,0.28517245,701.33,699.97,1.04766577]
[1735522368685,0.28517245,701.33,700.11,1.04766577]
[1735522369679,0.28517245,701.33,700.09,1.04766577]
[1735522370789,0.28517245,701.33,700.16,1.04766577]
[1735522371886,0.28517245,701.33,700.02,1.04766577]
[1735522372889,0.28517245,701.33,700.02,4.45778787]
[1735522373089,0.28517245,701.33,700.13,1.04766577]
[1735522373291,0.28517245,701.33,700.04,6.20073141]
[1735522373591,0.28517245,701.33,700.05,4.58257658]
[1735522373790,0.28517245,701.33,700.06,1.79196727]
[1735522374188,0.28517245,701.33,697.81,3.40804351]
[1735522374389,0.28517245,701.33,697.82,6.19865282]
[1735522374688,0.28517245,701.33,700.04,1.04825489]
[1735522376091,0.28517245,701.33,699.91,1.04825489]
[1735522377084,0.28517245,701.33,699.83,1.04825489]
[1735522377685,0.28517245,701.33,699.83,7.24690771]
[1735522377892,0.28517245,701.33,699.84,3.40804351]
[1735522378090,0.28517245,701.33,699.84,6.19865282]
[1735522378292,0.28517245,701.33,699.85,7.24690771]
[1735522378493,0.28517245,701.33,699.86,3.40804351]
[1735522378791,0.28517245,701.33,699.87,2.79060931]
[1735522378992,0.28517245,701.33,699.88,3.40804351]
[1735522379188,0.28517245,701.33,699.92,1.04825489]
[1735522379787,0.28517245,701.33,699.92,4.4562984]
[1735522379992,0.28517245,701.33,699.93,3.40804351]
[1735522380188,0.28517245,701.33,699.94,2.79060931]
[1735522380392,0.28517245,701.33,699.95,3.40804351]
[1735522380591,0.28517245,701.33,699.95,1.79196727]
[1735522380793,0.28517245,701.33,699.95,3.40898578]
[1735522380994,0.28517245,701.33,699.96,2.79060931]
[1735522381491,0.28517245,701.33,699.97,1.79209612]
[1735522381695,0.28517245,701.33,699.83,3.41061776]
[1735522381994,0.28517245,701.33,699.84,2.78508323]
[1735522382195,0.28517245,701.33,699.85,3.41061776]
[1735522382589,0.28517245,701.33,699.91,1.04825489]
[1735522383497,0.28517245,701.33,700.11,1.04825489]
[1735522384393,0.28517245,701.33,700.07,1.04825489]
[1735522385593,0.28517245,701.33,699.99,1.04825489]
[1735522385799,0.28517245,701.33,699.94,1.04825489]
[1735522386795,0.28517245,701.33,699.78,1.04825489]
[1735522388097,0.28517245,701.33,699.81,1.04825489]
[1735522389197,0.28517245,701.33,699.83,1.04825489]
[1735522390098,0.28517245,701.33,699.82,3.42133058]
[1735522390298,0.28517245,701.33,699.83,2.7940607]
[1735522390499,0.28517245,701.33,699.84,3.42133058]
[1735522390698,0.28517245,701.33,699.83,2.7940607]
[1735522390893,0.28517245,701.33,699.8,1.04825489]
[1735522391295,0.28517245,701.33,699.68,1.04825489]
[1735522391598,0.26265941,701.32,699.68,1.04825489]
[1735522391798,0.28517245,701.33,699.68,1.04825489]
[1735522392197,0.28518465,701.3,699.68,1.04825489]
[1735522392998,0.28518465,701.3,699.66,6.22281725]
[1735522393198,0.28518465,701.3,699.67,3.42579202]
[1735522393395,0.28518465,701.3,699.67,6.22281725]
[1735522393594,0.28518465,701.3,699.68,3.42579202]
[1735522393899,0.28518465,701.3,699.68,6.22281725]
[1735522394099,0.28518465,701.3,699.69,3.42579202]
[1735522394300,0.26263773,701.29,699.69,3.42579202]
[1735522394500,0.26263773,701.29,699.7,2.79702523]
[1735522394701,0.28519685,701.27,699.54,1.04825489]
[1735522395200,0.28519685,701.27,699.44,1.04825489]
[1735522396293,0.28519685,701.27,699.3,1.04825489]
[1735522396294,0.28519685,701.27,699.46,1.04825489]
[1735522397497,0.28519685,701.27,699.76,1.04825489]
[1735522398698,0.28519685,701.27,699.64,1.04825489]
[1735522398699,0.28519685,701.27,699.32,1.04825489]
[1735522399099,0.28519685,701.27,699.33,0.28598801]
[1735522399701,0.28519685,701.27,699.4,1.04825489]
[1735522399894,0.28519685,701.27,699.41,0.2859553]
[1735522400798,0.28519685,701.27,699.7,1.04825489]
[1735522401906,0.28519685,701.27,699.83,1.04825489]
[1735522403103,0.28519685,701.27,699.87,1.04825489]
[1735522404097,0.28519685,701.27,700.03,1.04825489]
[1735522405004,0.28519685,701.27,700.08,1.04825489]
[1735522405805,0.28519685,701.27,700.2,1.04825489]
[1735522407001,0.28519685,701.27,700.19,1.04825489]
[1735522407805,0.28519685,701.27,700.14,1.04825489]
[1735522408604,0.28519685,701.27,692.69,5.03912126]
[1735522408605,0.28519685,701.27,700.09,1.04825489]
[1735522409406,0.28519685,701.27,700.1,1.04825489]
[1735522410601,0.28519685,701.27,700.14,1.04825489]
[1735522411505,0.28519685,701.27,699.95,1.04825489]
[1735522411901,0.28519685,701.27,699.95,4.46783757]
[1735522412107,0.28519685,701.27,699.96,3.41958268]
[1735522412310,0.28519685,701.27,699.96,6.21292674]
[1735522412607,0.28519685,701.27,700.0,1.04825489]
[1735522413406,0.28519685,701.27,700.0,4.46783757]
[1735522413607,0.28519685,701.27,700.01,6.21292674]
[1735522413808,0.28519685,701.27,700.02,3.41958268]
[1735522414007,0.28519685,701.27,700.03,2.79334406]
[1735522414209,0.28519685,701.27,700.04,3.41958268]
[1735522414605,0.28519685,701.27,700.04,1.79679959]
[1735522414808,0.28519685,701.27,700.05,2.79334406]
[1735522415109,0.28519685,701.27,691.79,0.51689593]
[1735522415110,0.28519685,701.27,699.9,1.04825489]
[1735522416107,0.28519685,701.27,699.7,1.04825489]
[1735522416902,0.28519685,701.27,699.81,1.04825489]
[1735522418010,0.28519685,701.27,699.92,1.04825489]
[1735522419112,0.28519685,701.27,699.91,1.04825489]
[1735522420106,0.28519685,701.27,699.79,1.04825489]
[1735522420107,0.28519685,701.27,699.99,1.04825489]
[1735522421311,0.28519685,701.27,699.67,1.80120736]
[1735522421312,0.28519685,701.27,699.8,1.04825489]
[1735522422706,0.28519685,701.27,699.83,1.04825489]
[1735522423706,0.28519685,701.27,699.76,1.04825489]
[1735522424912,0.28519685,701.27,699.52,6.22865859]
[1735522424913,0.28519685,701.27,699.78,1.04825489]
[1735522425612,0.28519685,701.27,699.38,1.25790587]
[1735522425613,0.28519685,701.27,700.07,1.04825489]
[1735522426917,0.28519685,701.27,699.75,1.25790587]
[1735522426918,0.28519685,701.27,700.09,1.04825489]
[1735522428017,0.28519685,701.27,700.22,1.04825489]
[1735522429317,0.28519685,701.27,700.3,1.04825489]
[1735522430221,0.28519685,701.27,700.33,1.04825489]
[1735522431312,0.28519685,701.27,700.37,1.04825489]
[1735522432316,0.28519685,701.27,700.52,1.04825489]
[1735522433621,1.06159026,702.59,700.55,1.04825489]
[1735522433822,0.28470156,702.49,700.55,1.04825489]
[1735522434018,0.26230259,702.48,700.55,1.04825489]
[1735522434224,0.28471372,702.46,700.55,1.04825489]
[1735522434522,0.26230323,702.45,700.55,1.04825489]
[1735522434921,0.26230323,702.45,700.36,6.2084432]
[1735522434922,0.26230323,702.45,700.51,1.04825489]
[1735522435124,0.28472588,702.43,700.51,1.04825489]
[1735522435324,0.26230323,702.42,700.51,1.04825489]
[1735522435726,0.28473804,702.4,700.51,1.04825489]
[1735522435928,0.26230323,702.39,700.42,4.46566633]
[1735522436227,0.2847502,702.37,700.43,6.2084432]
[1735522436426,0.26230323,702.36,700.44,6.20514817]
[1735522436622,0.28476236,702.34,700.45,3.41411641]
[1735522436825,0.28476236,702.34,700.46,2.79103176]
[1735522437026,0.26228477,702.33,700.47,3.41411641]
[1735522437228,0.28477452,702.31,700.48,2.79103176]
[1735522437528,0.26228477,702.3,700.49,3.41411641]
[1735522437730,0.28478669,702.28,700.5,2.79103176]
[1735522438029,0.26228477,702.27,700.51,1.79556242]
[1735522438224,0.28479886,702.25,700.51,1.79556242]
[1735522438726,0.26228477,702.24,700.44,6.203446]
[1735522439030,0.28481102,702.22,700.45,6.203446]
[1735522439330,0.2623104,702.21,700.46,3.41241424]
[1735522439522,0.2623104,702.21,700.47,2.79103176]
[1735522439728,0.28482319,702.19,700.48,1.79556242]
[1735522439924,0.28482319,702.19,700.48,3.41215762]
[1735522440130,0.2623104,702.18,700.49,2.79103176]
[1735522440329,0.28483536,702.16,700.5,3.41215762]
[1735522440723,0.28483536,702.16,700.38,1.04825489]
[1735522441929,0.28483536,702.16,700.37,1.04825489]
[1735522443029,0.28483536,702.16,700.47,1.04825489]
[1735522443935,0.28483536,702.16,700.37,1.04825489]
[1735522444133,0.28483536,702.16,700.38,0.28555926]
[1735522447031,0.28483536,702.16,700.38,3.6894338]
[1735522447229,0.28483536,702.16,700.38,6.46983011]
[1735522447431,0.28483536,702.16,700.39,4.56891598]
[1735522447632,0.28483536,702.16,700.4,3.68942565]
[1735522448029,0.28483536,702.16,700.41,2.78039631]
[1735522448332,0.28483536,702.16,700.42,3.68941749]
[1735522448528,0.28483536,702.16,700.43,0.28553888]
[1735522448734,0.28483536,702.16,700.43,3.06593519]
[1735522448935,0.28483536,702.16,700.44,3.40387454]
[1735522449230,0.28483536,702.16,700.45,0.28553073]
[1735522449429,0.28483536,702.16,700.45,3.06592704]
[1735522449635,0.28483536,702.16,700.46,3.40387454]
[1735522449831,0.28483536,702.16,700.47,2.78039631]
[1735522450035,0.28483536,702.16,700.48,3.40387454]
[1735522450238,0.28483536,702.16,700.49,2.78039631]
[1735522450431,0.28483536,702.16,700.5,3.40387454]
[1735522450833,0.28483536,702.16,700.51,2.78039631]
[1735522451034,0.28483536,702.16,700.52,3.40387454]
[1735522451237,0.28483536,702.16,700.53,2.78039631]
[1735522451434,0.28483536,702.16,700.54,3.40387454]
[1735522451636,0.28483536,702.16,700.45,0.28553073]
[1735522455433,0.28483536,702.16,700.46,1.04825489]
[1735522455637,0.28483536,702.16,700.48,0.2855185]
[1735522458341,0.28483536,702.16,700.48,3.05171674]
[1735522458543,0.28483536,702.16,700.5,1.04825489]
[1735522458741,0.28483536,702.16,700.5,4.43359554]
[1735522458934,0.28483536,702.16,700.51,6.43704516]
[1735522459139,0.28483536,702.16,700.52,3.38534065]
[1735522459440,0.28483536,702.16,700.52,1.77881346]
[1735522459641,0.28483536,702.16,700.51,2.06431973]
[1735522459838,0.28483536,702.16,700.61,1.04825489]
[1735522460335,0.28483536,702.16,700.62,0.28546144]
[1735522461236,0.28483536,702.16,700.62,1.33371633]
[1735522461940,0.28483536,702.16,700.62,0.28546144]
[1735522462341,0.28483536,702.16,700.62,2.05900661]
[1735522462537,0.28483536,702.16,700.62,3.66143557]
[1735522462742,0.28483536,702.16,700.62,6.42006739]
[1735522463041,0.28483536,702.16,700.63,6.13523422]
[1735522463243,0.28483536,702.16,700.64,6.13523422]
[1735522463543,0.28483536,702.16,700.65,6.13523422]
[1735522463742,0.28483536,702.16,700.66,3.3766024]
[1735522463943,0.28483536,702.16,700.66,6.13523422]
[1735522464140,0.28483536,702.16,700.67,6.1339701]
[1735522464346,0.28483536,702.16,700.68,4.53217699]
[1735522464643,0.28483536,702.16,700.69,3.37519746]
[1735522465045,0.28483536,702.16,700.7,3.66062631]
[1735522465244,0.28483536,702.16,700.71,3.37519746]
[1735522465443,0.28483536,702.16,700.72,2.75863182]
[1735522465744,0.28483536,702.16,700.73,3.37519746]
[1735522466245,0.28483536,702.16,700.74,2.75863182]
[1735522466543,0.28483536,702.16,700.75,3.37519746]
[1735522466742,0.28483536,702.16,700.76,2.75863182]
[1735522466942,0.28483536,702.16,700.77,3.37519746]
[1735522467143,0.28483536,702.16,700.8,1.04825489]
[1735522467640,0.28483536,702.16,700.8,7.18208417]
[1735522467842,0.28483536,702.16,700.81,6.13382928]
[1735522468042,0.28483536,702.16,700.82,6.13382928]
[1735522468340,0.28483536,702.16,700.83,6.13382928]
[1735522468543,0.28483536,702.16,700.7,0.28542885]
[1735522468544,0.28483536,702.16,700.84,6.13382928]
[1735522468738,0.28483536,702.16,700.85,6.13382928]
[1735522468943,0.28483536,702.16,700.86,3.37519746]
[1735522469144,0.28483536,702.16,700.87,2.75863182]
[1735522469346,0.28483536,702.16,700.88,3.37519746]
[1735522469747,0.28483536,702.16,700.89,2.75863182]
[1735522469947,0.28483536,702.16,700.9,3.37519746]
[1735522470147,0.28483536,702.16,700.91,2.75863182]
[1735522470349,0.28483536,702.16,700.92,3.37519746]
[1735522470548,0.28483536,702.16,700.91,2.75863182]
[1735522470750,0.28483536,702.16,700.92,1.77476764]
[1735522471048,0.28483536,702.16,700.82,6.13685312]
[1735522471248,0.28483536,702.16,700.83,6.13685312]
[1735522471449,0.28483536,702.16,700.84,3.3782213]
[1735522471748,0.28483536,702.16,700.85,2.75863182]
[1735522471954,0.28483536,702.16,700.75,1.04825489]
[1735522472745,0.28483536,702.16,700.81,1.04825489]
[1735522473851,0.28483536,702.16,700.97,1.04825489]
[1735522474852,0.28483536,702.16,701.15,1.04825489]
[1735522475949,0.28483536,702.16,701.23,1.04825489]
[1735522477252,0.28483536,702.16,701.28,1.04825489]
[1735522478355,0.28483536,702.16,701.29,1.04825489]
[1735522479654,0.28483536,702.16,701.23,1.04825489]
[1735522480450,0.28483536,702.16,700.95,1.04825489]
[1735522481759,0.28483536,702.16,700.88,1.04825489]
[1735522483060,0.28483536,702.16,700.75,1.04825489]
[1735522483061,0.28483536,702.16,700.9,1.04825489]
[1735522484258,0.28483536,702.16,700.96,1.04825489]
[1735522486257,0.28483536,702.16,700.99,1.04825489]
[1735522487156,0.28483536,702.16,701.04,1.04825489]
[1735522488156,0.28483536,702.16,701.2,1.04825489]
[1735522489157,0.28483536,702.16,701.19,1.04825489]
[1735522490259,0.28483536,702.16,701.13,1.04825489]
[1735522491055,0.28483536,702.16,701.16,1.04825489]
[1735522492058,0.28483536,702.16,701.22,1.04825489]
[1735522492858,0.28483536,702.16,701.25,1.04825489]
[1735522493657,0.28483536,702.16,701.23,1.04825489]
[1735522494858,0.28483536,702.16,701.2,1.04825489]
[1735522495857,0.28483536,702.16,701.19,1.04825489]
[1735522496652,0.28483536,702.16,701.24,1.04825489]
[1735522497959,0.28483536,702.16,701.14,1.04825489]
[1735522499159,0.28483536,702.16,701.18,1.04825489]
[1735522500059,0.28483536,702.16,701.19,1.04825489]
[1735522501557,0.28483536,702.16,701.18,1.04825489]
[1735522502659,0.28483536,702.16,701.37,1.04825489]
[1735522503953,0.28483536,702.16,701.27,1.04825489]
[1735522505358,0.28483536,702.16,701.33,1.04825489]
[1735522506460,0.28483536,702.16,701.23,1.04825489]
[1735522506461,0.28483536,702.16,701.19,1.04825489]
[1735522507462,0.28483536,702.16,701.18,1.04825489]
[1735522508562,0.28483536,702.16,701.05,1.04825489]
[1735522508563,0.28483536,702.16,701.17,1.04825489]
[1735522509660,0.28483536,702.16,700.93,1.04825489]
[1735522510265,0.28483536,702.16,700.96,1.04825489]
[1735522511265,0.28483536,702.16,700.75,2.80180845]
[1735522511266,0.28483536,702.16,701.01,1.04825489]
[1735522512767,0.28483536,702.16,701.02,1.04825489]
[1735522513564,0.28483536,702.16,701.08,1.04825489]
[1735522514965,0.28483536,702.16,701.1,1.04825489]
[1735522516161,0.28483536,702.16,701.17,1.04825489]
[1735522517266,0.28483536,702.16,701.18,1.04825489]
[1735522517964,0.28483536,702.16,701.39,1.04825489]
[1735522519161,0.28483536,702.16,701.4,1.04825489]
[1735522520067,0.28483536,702.16,701.11,2.80180845]
[1735522520068,0.28483536,702.16,701.38,1.04825489]
[1735522520670,1.06159026,703.21,701.38,1.04825489]
[1735522520869,0.28441815,703.19,701.38,1.04825489]
[1735522521068,0.28441815,703.19,701.42,1.04825489]
[1735522521666,0.2619783,703.18,701.42,1.04825489]
[1735522521870,0.28443028,703.16,701.42,1.04825489]
[1735522522068,0.2619783,703.15,701.56,1.04825489]
[1735522522672,0.28444242,703.13,701.56,1.04825489]
[1735522522876,0.2619783,703.12,701.56,1.04825489]
[1735522523076,0.28445455,703.1,701.56,1.04825489]
[1735522523372,0.28445455,703.1,701.49,1.04825489]
[1735522523571,0.26200577,703.09,701.49,1.04825489]
[1735522524070,0.28446669,703.07,701.49,1.04825489]
[1735522524274,0.28446669,703.07,701.39,1.04825489]
[1735522524473,0.26200577,703.06,701.39,1.04825489]
[1735522524675,0.28447883,703.04,701.39,1.04825489]
[1735522525073,0.26200577,703.03,701.39,1.04825489]
[1735522525272,0.26200577,703.03,701.36,1.79527253]
[1735522525273,1.06159026,702.99,701.37,4.41409091]
[1735522525475,0.28450716,702.97,701.38,3.41727577]
[1735522525675,0.28450716,702.97,701.39,2.79208767]
[1735522525877,0.26207532,702.96,701.4,1.79563578]
[1735522526178,1.06159026,702.95,701.4,1.79563578]
[1735522526377,0.28452335,702.93,701.36,3.41808137]
[1735522526577,0.26207532,702.92,701.37,4.58772345]
[1735522526777,0.28453549,702.9,701.38,3.41808137]
[1735522526975,0.26207532,702.89,701.34,2.79208767]
[1735522527176,0.28454764,702.87,701.35,1.79534003]
[1735522527372,0.28454764,702.87,701.32,4.5874277]
[1735522527571,0.28454764,702.87,701.33,1.79534003]
[1735522527778,0.26207532,702.86,701.33,1.79534003]
[1735522527977,0.28455978,702.84,701.29,3.41730941]
[1735522528177,0.28455978,702.84,701.3,2.79208767]
[1735522528379,0.28455978,702.84,701.31,3.41730941]
[1735522528578,0.26208808,702.83,701.31,1.79534003]
[1735522528778,0.28457193,702.81,701.31,1.79534003]
[1735522528978,0.28457193,702.81,701.25,1.79534003]
[1735522529179,0.26208808,702.8,701.25,3.41725793]
[1735522529475,0.28458408,702.78,701.26,2.79208767]
[1735522529681,0.26208808,702.77,701.27,1.79534003]
[1735522530075,0.26208808,702.77,701.22,3.41747114]
[1735522530381,0.26208808,702.77,701.23,2.79208767]
[1735522530582,0.28458408,702.78,701.24,3.41747114]
[1735522530779,0.28458408,702.78,701.25,2.79208767]
[1735522531080,0.28458408,702.78,701.26,3.41747114]
[1735522531382,0.28458408,702.78,701.27,2.79208767]
[1735522531682,0.28458408,702.78,701.32,1.04825489]
[1735522532682,0.28458408,702.78,701.32,2.84359492]
[1735522532885,0.28458408,702.78,701.33,2.79208767]
[1735522533076,0.28458408,702.78,701.37,1.04825489]
[1735522533984,0.28458408,702.78,701.28,1.04825489]
[1735522535177,0.28458408,702.78,701.26,1.04825489]
[1735522536184,0.28458408,702.78,701.22,6.20769175]
[1735522536185,0.28458408,702.78,701.29,1.04825489]
[1735522537682,0.28458408,702.78,701.3,1.04825489]
[1735522540588,0.28458408,702.78,701.3,4.46221102]
[1735522540884,0.28458408,702.78,701.36,1.04825489]
[1735522542284,0.28458408,702.78,701.36,7.25084719]
[1735522542483,0.28458408,702.78,701.37,1.79355545]
[1735522542680,0.28458408,702.78,701.37,4.5835094]
[1735522542986,0.28458408,702.78,701.41,1.04825489]
[1735522543986,0.28458408,702.78,701.4,1.04825489]
[1735522545288,0.28458408,702.78,701.45,1.04825489]
[1735522546386,0.28458408,702.78,701.51,1.04825489]
[1735522547289,0.28458408,702.78,701.49,1.04825489]
[1735522548293,0.28458408,702.78,701.46,1.04825489]
[1735522549489,0.28458408,702.78,693.78,0.51629997]
[1735522549490,0.28458408,702.78,701.4,1.04825489]
[1735522550494,0.28458408,702.78,701.25,1.04825489]
[1735522551596,0.28458408,702.78,701.15,1.04825489]
[1735522553794,0.28458408,702.78,701.18,1.04825489]
[1735522554794,0.28458408,702.78,701.08,1.04825489]
[1735522556095,0.28458408,702.78,701.01,1.04825489]
[1735522556997,0.28458408,702.78,701.03,1.04825489]
[1735522559499,0.28458408,702.78,701.05,1.04825489]
[1735522560402,0.28458408,702.78,701.07,1.04825489]
[1735522561198,0.28458408,702.78,701.09,1.04825489]
[1735522563601,0.28458408,702.78,701.12,1.04825489]
[1735522563904,0.26212451,702.77,701.12,1.04825489]
[1735522564105,0.28459622,702.75,701.12,1.04825489]
[1735522564404,0.26213823,702.74,701.12,1.04825489]
[1735522564607,0.28460837,702.72,701.06,1.04825489]
[1735522564803,0.26213823,702.71,701.06,1.04825489]
[1735522565102,0.28462052,702.69,701.06,1.04825489]
[1735522565304,0.26213823,702.68,701.06,1.04825489]
[1735522565603,0.28463268,702.66,701.06,1.04825489]
[1735522565804,0.28463268,702.66,700.99,1.04825489]
[1735522566603,0.28463268,702.66,700.51,1.04825489]
[1735522567904,0.26225929,702.65,700.51,1.04825489]
[1735522568105,0.28463268,702.66,700.39,1.04825489]
[1735522568106,0.26226844,702.64,700.39,1.04825489]
[1735522568307,0.28464483,702.63,700.39,1.04825489]
[1735522568608,0.26226844,702.62,700.39,1.04825489]
[1735522568906,0.28465698,702.6,700.48,1.04825489]
[1735522569098,0.26223115,702.59,700.48,1.04825489]
[1735522569498,0.28466914,702.57,700.48,1.04825489]
[1735522569703,0.26222979,702.56,700.48,1.04825489]
[1735522569904,0.28468129,702.54,700.48,1.04825489]
[1735522570308,0.26222979,702.53,700.59,1.04825489]
[1735522570505,0.28469345,702.51,700.59,1.04825489]
[1735522571606,0.28469345,702.51,700.28,1.25790587]
[1735522571607,0.28469345,702.51,700.73,1.04825489]
[1735522572706,0.28469345,702.51,700.83,1.04825489]
[1735522573906,0.28469345,702.51,700.95,1.04825489]
[1735522574707,0.28469345,702.51,700.94,1.04825489]
[1735522575709,0.28469345,702.51,700.93,1.04825489]
[1735522576903,0.26219651,702.5,700.93,1.04825489]
[1735522577107,0.28470561,702.48,700.93,1.04825489]
[1735522577309,0.26219435,702.47,700.93,1.04825489]
[1735522577912,0.28471777,702.45,700.71,6.20494825]
[1735522578108,0.26219435,702.44,700.72,3.41514238]
[1735522578410,0.28472993,702.42,700.72,6.20494825]
[1735522578709,0.26219435,702.41,700.73,4.58413022]
[1735522578910,0.28474209,702.39,700.74,1.79432435]
[1735522579103,0.28474209,702.39,700.7,3.70102194]
[1735522579104,0.2622715,702.38,700.7,3.70102194]
[1735522579309,0.28475425,702.36,700.71,2.78980587]
[1735522579509,0.28475425,702.36,700.72,1.79432435]
[1735522579704,0.28475425,702.36,700.72,3.41477902]
[1735522579907,0.28475425,702.36,700.73,2.78980587]
[1735522580107,0.28475425,702.36,700.74,3.41485207]
[1735522580305,0.28475425,702.36,700.75,2.78980587]
[1735522580503,0.28475425,702.36,700.76,3.41485207]
[1735522581007,0.28475425,702.36,700.77,2.78980587]
[1735522581206,0.28475425,702.36,700.78,3.41485207]
[1735522581607,0.28475425,702.36,700.79,2.78980587]
[1735522581910,0.28475425,702.36,700.8,3.41485207]
[1735522582307,0.28475425,702.36,700.81,2.78980587]
[1735522582510,0.28475425,702.36,700.82,3.41485207]
[1735522582711,0.28475425,702.36,700.83,2.78980587]
[1735522582911,0.28475425,702.36,700.84,3.41485207]
[1735522583105,0.28475425,702.36,700.85,2.78980587]
[1735522583310,0.28475425,702.36,700.86,3.41485207]
[1735522583711,0.28475425,702.36,700.87,2.78980587]
[1735522584010,0.28475425,702.36,700.88,1.79432435]
[1735522584412,0.28475425,702.36,700.88,3.41467292]
[1735522584813,0.28475425,702.36,700.89,4.58413022]
[1735522585012,0.28475425,702.36,700.9,1.79325091]
[1735522585213,0.28475425,702.36,700.84,3.41318462]
[1735522585411,0.28475425,702.36,700.85,2.78980587]
[1735522585612,0.28475425,702.36,700.86,3.41318462]
[1735522586112,0.28475425,702.36,700.87,2.78980587]
[1735522586314,0.28475425,702.36,700.88,3.41318462]
[1735522586713,0.28475425,702.36,700.89,2.78980587]
[1735522586913,0.28475425,702.36,701.02,1.05042694]
[1735522587917,0.28475425,702.36,701.12,1.05042694]
[1735522589220,0.28475425,702.36,701.28,1.05042694]
[1735522590315,0.28475425,702.36,701.2,1.05042694]
[1735522591622,0.28475425,702.36,701.27,1.05042694]
[1735522592222,0.28475425,702.36,701.21,1.05042694]
[1735522593026,0.28475425,702.36,701.24,1.05042694]
[1735522594129,0.28475425,702.36,701.07,1.05042694]
[1735522595021,0.28475425,702.36,700.96,1.05042694]
[1735522596027,0.28475425,702.36,700.84,1.05042694]
[1735522597126,0.28475425,702.36,700.82,1.05042694]
[1735522598325,0.28475425,702.36,700.8,4.58189587]
[1735522598525,0.28475425,702.36,700.81,3.41410658]
[1735522599229,0.28475425,702.36,700.82,2.78844636]
[1735522599528,0.28475425,702.36,700.94,1.05042694]
[1735522600729,0.28475425,702.36,700.66,1.26051233]
[1735522600730,0.28475425,702.36,701.12,1.05042694]
[1735522601929,0.28475425,702.36,701.13,1.05042694]
[1735522602828,0.28475425,702.36,701.14,1.05042694]